bitfinex-derivatives/quotes_SOLF0:USTF0_20241120
["timestamp","ask_amount","ask_price","bid_price","bid_amount"]
[1732129803615,2.1555,231.75,231.66,1.12894111]
[1732129803819,10.67456061,231.8,231.67,1.12894111]
[1732129804021,10.67456061,231.8,231.68,1.12894111]
[1732129804223,10.67456061,231.8,231.69,4.16894111]
[1732129804415,10.67456061,231.8,231.69,3.04]
[1732129804718,10.67456061,231.77,231.69,3.04]
[1732129804920,2.1558,231.72,231.69,3.04]
[1732129805121,10.67456061,231.77,231.69,3.04]
[1732129806326,2.1555,231.75,231.69,3.04]
[1732129806522,10.67456061,231.77,231.69,3.04]
[1732129807122,2.1559,231.71,231.64,3.04]
[1732129807427,10.67456061,231.77,231.64,3.04]
[1732129807625,10.67456061,231.77,231.65,2.1563]
[1732129807821,10.67456061,231.77,231.64,3.04]
[1732129808028,10.67456061,231.77,231.65,1.12870352]
[1732129808226,2.1556,231.73,231.66,1.12870352]
[1732129808526,2.1556,231.73,231.64,3.04]
[1732129808732,10.67456061,231.77,231.65,1.12846045]
[1732129808929,10.67456061,231.77,231.64,3.04]
[1732129808930,10.67456061,231.77,231.66,1.12846045]
[1732129809124,10.67456061,231.77,231.64,3.04]
[1732129809330,2.1557,231.73,231.68,2.156]
[1732129809635,10.67456061,231.8,231.64,13.71456061]
[1732129809927,2.1555,231.74,231.65,1.12862447]
[1732129810124,2.1555,231.74,231.66,1.12862447]
[1732129810425,2.1555,231.74,231.67,1.12862447]
[1732129810629,2.1555,231.74,231.64,13.71456061]
[1732129810830,2.1555,231.74,231.65,1.12846898]
[1732129811030,2.1555,231.74,231.66,1.12846898]
[1732129811233,6.19604983,231.8,231.67,1.12846898]
[1732129811428,6.19604983,231.8,231.64,13.71456061]
[1732129811633,6.19604983,231.8,231.65,1.1284936]
[1732129811931,6.19604983,231.8,231.66,1.1284936]
[1732129812132,6.19604983,231.8,231.67,1.1284936]
[1732129812325,2.1556,231.74,231.7,2.1559]
[1732129812930,2.1556,231.74,231.64,13.71456061]
[1732129813125,2.1556,231.74,231.65,1.12841851]
[1732129813325,2.1556,231.74,231.66,1.12841851]
[1732129813525,2.1556,231.74,231.7,2.1558]
[1732129813725,6.19604983,231.8,231.7,2.1558]
[1732129813925,6.19604983,231.8,231.64,13.71456061]
[1732129814130,2.9117,231.83,231.65,1.12834033]
[1732129814131,10.67456061,231.77,231.65,1.12834033]
[1732129814325,10.67456061,231.77,231.64,3.04]
[1732129814528,10.67456061,231.77,231.65,1.12874541]
[1732129814731,10.67456061,231.77,231.66,1.12839953]
[1732129815033,10.67456061,231.77,231.64,13.71456061]
[1732129815230,10.67456061,231.74,231.61,15.66076061]
[1732129815431,10.67456061,231.74,231.62,4.16831495]
[1732129815626,10.67456061,231.74,231.64,2.1564]
[1732129815825,10.67456061,231.74,231.62,3.04]
[1732129816224,10.67456061,231.74,231.63,2.1565]
[1732129816425,10.67456061,231.77,231.62,3.04]
[1732129816630,10.67456061,231.74,231.64,2.1563]
[1732129817529,2.156,231.69,231.64,2.1563]
[1732129817931,2.156,231.69,231.65,2.1563]
[1732129818125,10.67456061,231.77,231.62,3.04]
[1732129818431,10.67456061,231.77,231.63,1.12823538]
[1732129818625,10.67456061,231.77,231.64,1.12823538]
[1732129818826,10.67456061,231.77,231.65,1.12814633]
[1732129819032,10.67456061,231.77,231.68,2.156]
[1732129819234,2.1558,231.71,231.64,10.67456061]
[1732129819733,10.67456061,231.77,231.65,1.12811067]
[1732129819934,10.67456061,231.77,231.64,10.67456061]
[1732129820133,10.67456061,231.77,231.67,2.1561]
[1732129820134,2.1559,231.71,231.67,2.1561]
[1732129821231,13.71456061,231.8,231.69,2.1559]
[1732129821534,10.67456061,231.8,231.69,2.1559]
[1732129821925,12.84876061,231.83,231.69,3.04]
[1732129822129,2.155,231.79,231.69,3.04]
[1732129822334,12.84876061,231.83,231.69,3.04]
[1732129822535,10.67456061,231.83,231.7,11.80382107]
[1732129822828,2.1551,231.78,231.7,10.67456061]
[1732129823130,10.67456061,231.83,231.71,3.57306109]
[1732129823335,10.67456061,231.83,231.71,2.4437]
[1732129823634,10.67456061,231.83,231.72,1.13031489]
[1732129823936,10.67456061,231.83,231.71,4.9075]
[1732129824131,10.67456061,231.83,231.72,1.13031524]
[1732129824436,10.67456061,231.83,231.73,3.28717453]
[1732129824733,10.67456061,231.83,231.73,2.1556]
[1732129824934,10.67456061,231.83,231.71,4.9075]
[1732129825134,10.67456061,231.83,231.74,2.1554]
[1732129825434,10.67456061,231.83,231.71,4.9075]
[1732129825734,10.67456061,231.83,231.71,7.0632]
[1732129826035,10.67456061,231.83,231.72,1.13268708]
[1732129826236,10.67456061,231.83,231.73,1.13268708]
[1732129826536,10.67456061,231.83,231.71,7.0632]
[1732129826734,2.1554,231.76,231.72,1.13343417]
[1732129826937,10.67456061,231.83,231.71,2.4437]
[1732129827129,10.67456061,231.83,231.72,1.13358605]
[1732129827435,2.1555,231.75,231.73,1.134493]
[1732129827636,10.67456061,231.83,231.71,2.4437]
[1732129827839,4.309,231.86,231.72,1.13447735]
[1732129827840,2.1556,231.73,231.72,1.13447735]
[1732129828133,10.67456061,231.8,231.72,1.13447735]
[1732129828331,10.67456061,231.8,231.73,1.13447735]
[1732129828634,2.1554,231.75,231.71,2.4437]
[1732129828839,2.1554,231.75,231.72,1.13537532]
[1732129829034,2.1554,231.75,231.73,1.13537532]
[1732129829229,2.1554,231.75,231.71,2.4437]
[1732129829730,2.1554,231.75,231.72,1.13640666]
[1732129829933,10.67456061,231.86,231.73,11.81096727]
[1732129830139,10.67456061,231.86,231.74,1.13640666]
[1732129830332,2.1548,231.82,231.78,2.1551]
[1732129830537,10.67456061,231.86,231.78,2.1551]
[1732129830740,4.3077,231.92,231.79,1.13609662]
[1732129830939,2.1543,231.87,231.79,3.29109662]
[1732129831237,10.67456061,231.87,231.76,3.04]
[1732129831540,10.67456061,231.87,231.71,5.0167]
[1732129831541,10.67456061,231.81,231.71,10.2125]
[1732129831839,10.67456061,231.81,231.72,1.10009899]
[1732129832035,2.1552,231.77,231.73,1.10009899]
[1732129832241,2.1552,231.77,231.71,8.0567]
[1732129832443,2.1552,231.77,231.72,1.10017442]
[1732129832632,2.1551,231.79,231.73,1.10017442]
[1732129832834,2.1551,231.79,231.74,1.10017442]
[1732129833038,10.67456061,231.84,231.71,8.0567]
[1732129833237,10.67456061,231.84,231.74,2.1555]
[1732129833435,10.67456061,231.84,231.71,8.0567]
[1732129833637,10.67456061,231.84,231.72,1.10008307]
[1732129833837,10.67456061,231.84,231.73,1.10008307]
[1732129834041,10.67456061,231.84,231.74,1.10016544]
[1732129834341,2.1551,231.78,231.72,2.1557]
[1732129834540,2.1551,231.78,231.73,1.10026171]
[1732129834936,2.1548,231.81,231.71,8.0567]
[1732129835140,10.67456061,231.88,231.73,10.67456061]
[1732129835340,0.69615849,231.87,231.74,1.10025917]
[1732129835542,2.4799,231.89,231.76,10.67456061]
[1732129835744,2.4799,231.89,231.77,1.10025917]
[1732129835937,2.4799,231.89,231.78,4.14025917]
[1732129836237,2.4799,231.89,231.78,3.04]
[1732129836440,2.4799,231.89,231.79,1.09954071]
[1732129836742,2.1546,231.84,231.8,2.1548]
[1732129836943,2.4799,231.89,231.8,2.1548]
[1732129837342,2.1543,231.87,231.8,2.1548]
[1732129837641,2.4799,231.89,231.8,2.1548]
[1732129837843,10.67456061,231.92,231.8,2.1548]
[1732129838045,0.69648835,231.91,231.8,2.1548]
[1732129838444,2.1544,231.86,231.8,2.1548]
[1732129838639,10.67456061,231.92,231.8,2.1548]
[1732129839041,2.1545,231.86,231.8,2.1548]
[1732129839543,10.67456061,231.89,231.77,5.1952]
[1732129839751,2.1547,231.83,231.77,5.1952]
[1732129839945,2.1547,231.83,231.77,3.04]
[1732129840147,10.67456061,231.89,231.78,2.1551]
[1732129840447,2.1548,231.82,231.77,3.04]
[1732129840644,10.67456061,231.89,231.77,3.04]
[1732129840848,0.69615454,231.88,231.77,2.1552]
[1732129841142,0.69615454,231.88,231.77,3.04]
[1732129841646,10.67456061,231.92,231.77,3.04]
[1732129841845,10.67456061,231.89,231.77,3.04]
[1732129842652,0.69549029,231.88,231.77,3.04]
[1732129842846,2.1548,231.81,231.77,5.1952]
[1732129843052,10.67456061,231.89,231.77,5.1952]
[1732129843247,10.67456061,231.89,231.77,3.04]
[1732129843448,10.67456061,231.89,231.78,2.1551]
[1732129844254,2.1547,231.82,231.78,2.1551]
[1732129844446,2.1547,231.82,231.77,3.04]
[1732129844654,10.67456061,231.86,231.77,3.04]
[1732129844950,10.67456061,231.83,231.73,3.02]
[1732129845651,10.67456061,231.83,231.73,5.1755]
[1732129845959,10.67456061,231.86,231.73,3.02]
[1732129846155,0.69606012,231.85,231.73,13.69456061]
[1732129846357,10.67456061,231.89,231.74,1.10632287]
[1732129846562,0.6961284,231.88,231.75,1.10632287]
[1732129846763,0.6961284,231.88,231.73,13.69456061]
[1732129846955,0.6961284,231.88,231.77,2.1552]
[1732129846956,2.1548,231.82,231.77,2.1552]
[1732129847260,10.67456061,231.89,231.73,13.69456061]
[1732129847560,2.1547,231.83,231.78,2.155]
[1732129847955,2.1548,231.82,231.77,2.1552]
[1732129848157,10.67456061,231.86,231.73,13.69456061]
[1732129848357,10.67456061,231.86,231.73,10.67456061]
[1732129848557,2.155,231.8,231.71,5.0167]
[1732129848762,10.67456061,231.83,231.71,8.0367]
[1732129849162,2.1555,231.75,231.71,8.0367]
[1732129849466,10.67456061,231.83,231.71,8.0367]
[1732129849762,2.1554,231.76,231.71,8.0367]
[1732129850554,2.1556,231.73,231.7,3.02]
[1732129851062,2.1552,231.77,231.7,3.02]
[1732129851254,10.67456061,231.8,231.7,3.02]
[1732129851662,2.1558,231.71,231.7,3.02]
[1732129854160,3.02,231.85,231.7,13.69456061]
[1732129854161,10.67456061,231.84,231.7,13.69456061]
[1732129854463,0.69645339,231.83,231.7,13.69456061]
[1732129855059,0.69645339,231.83,231.72,2.1556]
[1732129855263,0.69645339,231.83,231.7,13.69456061]
[1732129855766,2.1553,231.77,231.72,2.1557]
[1732129856367,2.1553,231.76,231.72,2.1557]
[1732129856661,10.67456061,231.84,231.72,2.1557]
[1732129856866,0.69647206,231.83,231.72,2.1557]
[1732129857865,10.67456061,231.84,231.72,2.1557]
[1732129858367,2.1552,231.77,231.72,2.1557]
[1732129859365,2.1553,231.76,231.72,2.1557]
[1732129859761,10.67456061,231.84,231.72,2.1557]
[1732129859960,2.1555,231.75,231.71,4.6746]
[1732129860164,10.67456061,231.84,231.71,2.5189]
[1732129860464,2.1555,231.75,231.71,2.5189]
[1732129860667,10.67456061,231.84,231.71,2.5189]
[1732129860869,0.69632544,231.83,231.71,2.5189]
[1732129861071,2.1556,231.73,231.71,2.5189]
[1732129861276,10.67456061,231.81,231.71,2.5189]
[1732129861468,0.69629316,231.8,231.71,2.5189]
[1732129861770,2.1557,231.73,231.71,2.5189]
[1732129862671,2.1555,231.75,231.71,2.5189]
[1732129863273,10.67456061,231.84,231.71,2.5189]
[1732129863463,2.1556,231.73,231.71,2.5189]
[1732129864070,10.67456061,231.84,231.71,2.5189]
[1732129864273,2.1557,231.72,231.71,2.5189]
[1732129866175,2.1555,231.75,231.71,4.6746]
[1732129866466,10.67456061,231.84,231.71,2.5189]
[1732129866666,10.67456061,231.84,231.72,1.10829724]
[1732129866867,10.67456061,231.87,231.73,10.67456061]
[1732129867064,7.55283807,231.86,231.79,6.85692292]
[1732129867268,6.85692292,231.86,231.79,6.85692292]
[1732129867665,2.1549,231.81,231.77,9.87692292]
[1732129868569,6.85692292,231.82,231.77,3.02]
[1732129868774,10.71765284,231.85,231.73,3.02]
[1732129869072,2.1549,231.8,231.75,2.1554]
[1732129869275,10.71765284,231.88,231.74,10.71765284]
[1732129869475,0.6959756,231.87,231.74,10.71765284]
[1732129869666,2.1547,231.83,231.73,3.02]
[1732129869978,10.71765284,231.88,231.74,2.1554]
[1732129870168,10.71765284,231.85,231.73,3.02]
[1732129870375,0.69569404,231.84,231.73,3.02]
[1732129870669,10.71765284,231.82,231.71,2.5189]
[1732129870869,0.69569404,231.81,231.71,2.5189]
[1732129871679,10.71765284,231.79,231.66,10.71765284]
[1732129871877,10.71765284,231.79,231.66,13.73765284]
[1732129872170,0.69587448,231.78,231.66,13.73765284]
[1732129872375,0.69587448,231.78,231.66,3.02]
[1732129873278,2.1558,231.71,231.66,3.02]
[1732129874674,10.71765284,231.79,231.66,3.02]
[1732129874876,2.156,231.69,231.66,3.02]
[1732129875071,10.71765284,231.79,231.66,3.02]
[1732129875276,2.1559,231.71,231.66,3.02]
[1732129875473,10.71765284,231.79,231.66,3.02]
[1732129875675,0.69568008,231.78,231.66,3.02]
[1732129875975,2.1559,231.7,231.66,3.02]
[1732129877175,2.1558,231.71,231.66,3.02]
[1732129877375,10.71765284,231.79,231.66,3.02]
[1732129877575,0.69571341,231.78,231.66,3.02]
[1732129877976,0.69571341,231.78,231.66,13.73765284]
[1732129878284,2.1557,231.73,231.67,2.1561]
[1732129878484,10.71765284,231.79,231.66,13.73765284]
[1732129878783,2.1555,231.74,231.68,2.156]
[1732129880084,2.1555,231.74,231.69,2.1559]
[1732129880473,2.1555,231.74,231.7,2.03]
[1732129880678,2.1556,231.73,231.7,2.03]
[1732129880879,10.71765284,231.82,231.7,2.03]
[1732129881182,0.69586281,231.81,231.7,2.03]
[1732129881579,10.71765284,231.82,231.7,2.03]
[1732129881789,10.71765284,231.82,231.7,6.2799]
[1732129882186,10.71765284,231.82,231.7,4.124]
[1732129882682,10.71765284,231.82,231.7,6.2798]
[1732129883082,10.71765284,231.82,231.7,7.144]
[1732129883384,0.6950835,231.81,231.7,7.144]
[1732129883591,2.1555,231.74,231.7,7.144]
[1732129884784,10.71765284,231.82,231.7,7.144]
[1732129884980,10.71765284,231.82,231.7,4.124]
[1732129885189,0.69495299,231.81,231.7,4.124]
[1732129885385,10.71765284,231.79,231.7,2.03]
[1732129885587,2.1558,231.71,231.7,2.03]
[1732129885888,10.71765284,231.79,231.7,2.03]
[1732129886188,2.1557,231.72,231.7,2.03]
[1732129886382,10.71765284,231.79,231.7,2.03]
[1732129886580,3.02,231.85,231.7,2.03]
[1732129886781,11.41278808,231.84,231.7,2.03]
[1732129886985,0.69513524,231.83,231.71,2.1558]
[1732129887184,2.155,231.8,231.7,2.03]
[1732129887489,10.71765284,231.84,231.71,1.10748236]
[1732129887782,2.1551,231.78,231.74,2.1554]
[1732129887982,10.71765284,231.84,231.7,2.03]
[1732129888191,2.1552,231.78,231.73,4.2446]
[1732129888580,2.1552,231.78,231.74,6.85950301]
[1732129889186,6.85950301,231.81,231.74,6.85950301]
[1732129889888,2.155,231.79,231.74,9.01490301]
[1732129890185,2.18710489,231.91,231.73,2.0891]
[1732129890186,3.02,231.93,231.76,6.85950301]
[1732129890492,2.1548,231.82,231.78,9.01460301]
[1732129891384,2.1549,231.8,231.77,2.1552]
[1732129891582,6.85950301,231.83,231.76,2.1465]
[1732129891990,2.1548,231.81,231.76,4.3018]
[1732129892188,6.85950301,231.83,231.76,11.16130301]
[1732129892582,2.1551,231.78,231.76,9.00600301]
[1732129892989,6.85950301,231.83,231.76,9.00600301]
[1732129893892,3.88533827,231.92,231.73,2.0891]
[1732129893893,6.85950301,231.79,231.73,2.0891]
[1732129894093,2.1554,231.75,231.73,2.0891]
[1732129894791,6.85950301,231.79,231.73,2.0891]
[1732129894991,2.1555,231.74,231.73,2.0891]
[1732129895191,6.85950301,231.81,231.73,2.0891]
[1732129895786,7.3289,231.86,231.74,6.85950301]
[1732129895988,6.85950301,231.83,231.76,6.85950301]
[1732129896588,6.85950301,231.83,231.74,6.85950301]
[1732129897196,2.1553,231.77,231.74,6.85950301]
[1732129897589,3.02,231.86,231.74,6.85950301]
[1732129897796,6.85950301,231.83,231.74,9.01500301]
[1732129898197,6.85950301,231.83,231.76,6.85950301]
[1732129898391,2.1549,231.81,231.76,9.01480301]
[1732129898591,6.85950301,231.83,231.76,9.01480301]
[1732129898789,6.85950301,231.83,231.76,6.85950301]
[1732129899491,6.85950301,231.83,231.74,6.85950301]
[1732129899703,6.85950301,231.83,231.74,9.01500301]
[1732129900198,2.155,231.8,231.74,9.01500301]
[1732129900797,6.85950301,231.83,231.74,9.01500301]
[1732129901500,2.1551,231.79,231.74,2.1555]
[1732129901697,6.85950301,231.83,231.74,9.01500301]
[1732129902091,2.1552,231.77,231.74,6.85950301]
[1732129902294,2.1552,231.77,231.73,5.1091]
[1732129902699,2.1553,231.76,231.73,5.1091]
[1732129902994,6.85950301,231.81,231.73,5.1091]
[1732129903207,2.1551,231.79,231.73,7.2647]
[1732129903399,6.85950301,231.81,231.73,7.2647]
[1732129903699,6.85950301,231.81,231.74,6.85950301]
[1732129904093,2.1554,231.76,231.74,6.85950301]
[1732129904299,6.85950301,231.81,231.74,6.85950301]
[1732129904895,6.85950301,231.81,231.73,5.1091]
[1732129905398,6.85950301,231.81,231.74,6.85950301]
[1732129905598,6.85950301,231.81,231.73,5.1091]
[1732129905799,6.85950301,231.81,231.73,11.96860301]
[1732129906196,2.1551,231.79,231.73,11.96860301]
[1732129906402,6.85950301,231.81,231.73,11.96860301]
[1732129907301,2.1553,231.76,231.73,11.96860301]
[1732129907699,6.85950301,231.81,231.73,11.96860301]
[1732129908101,6.85950301,231.81,231.73,8.94860301]
[1732129908301,2.1555,231.74,231.73,2.0891]
[1732129908498,6.85950301,231.79,231.7,2.03]
[1732129908700,2.1559,231.7,231.65,6.85950301]
[1732129908901,6.85950301,231.73,231.65,6.85950301]
[1732129909396,6.85950301,231.73,231.65,5.1563]
[1732129909597,6.85950301,231.73,231.65,12.01580301]
[1732129909801,3.0,231.8,231.65,12.01580301]
[1732129910100,6.85950301,231.73,231.65,12.01580301]
[1732129910507,2.1559,231.7,231.67,6.85950301]
[1732129910707,3.0,231.8,231.67,6.85950301]
[1732129910903,6.85950301,231.76,231.67,6.85950301]
[1732129911101,3.0,231.8,231.69,2.1559]
[1732129911302,3.0,231.85,231.71,6.85950301]
[1732129911503,2.1552,231.77,231.73,6.85950301]
[1732129911705,2.1552,231.77,231.73,9.01510301]
[1732129912205,6.85950301,231.81,231.73,6.85950301]
[1732129912804,2.1553,231.77,231.73,6.85950301]
[1732129913702,6.85950301,231.81,231.73,6.85950301]
[1732129913907,2.1554,231.76,231.73,6.85950301]
[1732129914306,2.1556,231.74,231.7,6.85950301]
[1732129914602,6.85950301,231.79,231.7,6.85950301]
[1732129915306,6.85950301,231.77,231.7,6.85950301]
[1732129915604,2.1558,231.72,231.7,6.85950301]
[1732129915805,6.85950301,231.77,231.7,6.85950301]
[1732129916616,6.0352,231.92,231.76,6.85950301]
[1732129916805,6.85950301,231.88,231.8,6.85950301]
[1732129917010,0.6931748,231.87,231.8,6.85950301]
[1732129917506,6.85950301,231.88,231.8,6.85950301]
[1732129917706,3.0,231.97,231.82,6.85950301]
[1732129917906,2.1545,231.86,231.82,6.85950301]
[1732129918107,6.85950301,231.89,231.82,6.85950301]
[1732129918304,0.69350843,231.88,231.82,6.85950301]
[1732129918512,6.85950301,231.91,231.84,6.85950301]
[1732129918813,0.69345967,231.9,231.8,12.53232456]
[1732129919009,0.69345967,231.89,231.8,1.8236]
[1732129919308,0.69345967,231.88,231.8,1.8236]
[1732129919510,2.1545,231.85,231.8,1.8236]
[1732129921315,2.1546,231.84,231.8,1.8236]
[1732129922713,7.50407815,231.91,231.8,1.8236]
[1732129922714,2.1547,231.83,231.8,1.8236]
[1732129923717,10.70872456,231.89,231.8,1.8236]
[1732129924012,0.69393048,231.88,231.8,1.8236]
[1732129924415,2.1548,231.82,231.8,1.8236]
[1732129925315,2.1548,231.81,231.8,1.8236]
[1732129927119,2.1549,231.8,231.79,4.7555]
[1732129929611,2.1549,231.8,231.79,1.7555]
[1732129932507,3.0,231.91,231.79,1.7555]
[1732129932707,0.69492289,231.9,231.79,1.7555]
[1732129933116,2.1543,231.87,231.79,3.9105]
[1732129933318,10.70872456,231.92,231.79,12.46422456]
[1732129933616,0.69549746,231.91,231.79,12.46422456]
[1732129933817,2.1544,231.86,231.79,12.46422456]
[1732129934212,2.1542,231.89,231.81,2.1548]
[1732129934414,10.70872456,231.92,231.79,12.46422456]
[1732129934611,0.69536024,231.91,231.79,12.46422456]
[1732129934816,2.1544,231.86,231.8,2.1549]
[1732129935011,2.1544,231.86,231.79,12.46422456]
[1732129935814,10.70872456,231.92,231.79,12.46422456]
[1732129936015,0.69551357,231.91,231.79,12.46422456]
[1732129936410,0.69551357,231.91,231.83,2.1546]
[1732129936615,0.69551357,231.91,231.8,3.0]
[1732129937515,2.1546,231.84,231.8,3.0]
[1732129938119,10.70872456,231.95,231.8,3.0]
[1732129938718,2.1545,231.86,231.82,6.85449365]
[1732129939118,6.85449365,231.91,231.84,6.85449365]
[1732129939316,6.85449365,231.89,231.82,6.85449365]
[1732129939621,6.85449365,231.87,231.8,9.85449365]
[1732129940218,2.1545,231.85,231.8,9.85449365]
[1732129940923,2.1545,231.85,231.82,6.85449365]
[1732129941519,3.0,232.0,231.84,6.85449365]
[1732129941721,6.85449365,231.91,231.84,6.85449365]
[1732129941917,2.1541,231.89,231.84,6.85449365]
[1732129942221,6.85449365,231.91,231.84,6.85449365]
[1732129942422,6.85449365,231.91,231.83,6.85449365]
[1732129942821,6.85449365,231.91,231.8,3.0]
[1732129943021,6.85449365,231.91,231.84,6.85449365]
[1732129943816,3.0,232.0,231.84,6.85449365]
[1732129944121,6.85449365,231.92,231.84,6.85449365]
[1732129944318,2.1544,231.87,231.84,6.85449365]
[1732129944817,2.1544,231.86,231.84,6.85449365]
[1732129945523,6.85449365,231.93,231.84,6.85449365]
[1732129945723,6.85449365,231.93,231.86,6.85449365]
[1732129946626,4.3058,232.03,231.9,6.85449365]
[1732129946627,6.85449365,231.97,231.9,6.85449365]
[1732129946825,4.3058,232.03,231.9,6.85449365]
[1732129946826,0.69651398,231.96,231.9,6.85449365]
[1732129947022,6.85449365,231.97,231.91,1.86]
[1732129947221,0.69651521,231.96,231.91,1.86]
[1732129947424,4.3058,232.03,231.79,2.155]
[1732129947425,6.85449365,231.93,231.79,2.155]
[1732129947621,6.85449365,231.89,231.82,8.71449365]
[1732129947823,6.85449365,231.89,231.83,3.0]
[1732129948418,6.85449365,231.87,231.82,3.751]
[1732129948618,2.1546,231.84,231.82,6.751]
[1732129948821,6.85449365,231.85,231.82,3.751]
[1732129949229,6.85449365,231.85,231.82,1.86]
[1732129949432,2.1547,231.83,231.82,1.86]
[1732129950326,6.85449365,231.89,231.82,1.86]
[1732129950627,1.1188,231.97,231.82,1.86]
[1732129950822,6.85449365,231.88,231.82,1.86]
[1732129952127,2.1547,231.83,231.82,1.86]
[1732129953528,2.1546,231.84,231.79,9.85449365]
[1732129953730,6.85449365,231.86,231.79,9.85449365]
[1732129954632,2.1548,231.82,231.79,9.85449365]
[1732129955124,6.85449365,231.86,231.79,6.85449365]
[1732129955329,6.85449365,231.86,231.7,3.8418]
[1732129955330,6.85449365,231.88,231.81,6.85449365]
[1732129956527,2.1545,231.85,231.81,6.85449365]
[1732129956728,6.85449365,231.88,231.81,6.85449365]
[1732129957026,2.1546,231.84,231.81,6.85449365]
[1732129957230,6.85449365,231.88,231.81,6.85449365]
[1732129957734,2.1546,231.84,231.81,6.85449365]
[1732129958232,6.85449365,231.88,231.79,5.7675]
[1732129958435,2.1546,231.84,231.81,6.85449365]
[1732129958625,4.1188,231.97,231.83,6.85449365]
[1732129958926,6.85449365,231.93,231.86,6.85449365]
[1732129959234,0.69578599,231.92,231.86,6.85449365]
[1732129959730,4.3064,232.0,231.88,6.85449365]
[1732129959731,0.69578599,231.91,231.88,6.85449365]
[1732129959935,6.85449365,231.96,231.88,9.85449365]
[1732129960231,6.85449365,231.94,231.88,9.85449365]
[1732129960433,4.3064,232.0,231.88,9.85449365]
[1732129960624,6.85449365,231.95,231.88,9.85449365]
[1732129960828,2.154,231.91,231.88,9.85449365]
[1732129961030,6.85449365,231.93,231.88,3.0]
[1732129961532,2.1541,231.89,231.88,3.0]
[1732129961923,2.154,231.91,231.88,3.0]
[1732129962134,7.54621118,231.94,231.88,3.0]
[1732129962331,0.69562333,231.93,231.88,3.0]
[1732129962534,2.1541,231.89,231.88,3.0]
[1732129966540,6.85449365,231.91,231.83,9.83449365]
[1732129966732,6.85449365,231.91,231.83,6.85449365]
[1732129967233,2.1541,231.89,231.83,6.85449365]
[1732129967537,6.85449365,231.91,231.83,6.85449365]
[1732129968436,2.1545,231.86,231.83,6.85449365]
[1732129968931,2.1543,231.87,231.82,2.98]
[1732129969132,6.85449365,231.89,231.82,2.98]
[1732129969432,6.85449365,231.89,231.82,9.83449365]
[1732129971338,2.1546,231.84,231.82,9.83449365]
[1732129971541,6.85449365,231.89,231.82,9.83449365]
[1732129971733,2.98,231.97,231.84,6.85449365]
[1732129971937,6.85449365,231.92,231.84,6.85449365]
[1732129972439,2.1542,231.89,231.84,6.85449365]
[1732129972633,2.98,231.97,231.84,6.85449365]
[1732129972634,6.85449365,231.9,231.84,6.85449365]
[1732129974145,6.85449365,231.95,231.88,6.85449365]
[1732129974342,0.69414423,231.94,231.88,6.85449365]
[1732129974545,6.85449365,231.95,231.88,6.85449365]
[1732129974754,2.1539,231.92,231.88,6.85449365]
[1732129975244,2.1539,231.92,231.9,6.85449365]
[1732129975543,1.7737,232.01,231.82,2.98]
[1732129975544,2.154,231.91,231.82,2.98]
[1732129975745,2.154,231.91,231.87,6.85449365]
[1732129977842,2.154,231.9,231.87,6.85449365]
[1732129978339,6.85449365,231.94,231.87,6.85449365]
[1732129978541,2.1539,231.91,231.87,6.85449365]
[1732129978739,6.85449365,231.94,231.87,6.85449365]
[1732129980050,6.85449365,231.9,231.85,2.98]
[1732129980639,6.85449365,231.92,231.85,2.98]
[1732129981243,2.154,231.9,231.85,2.98]
[1732129981441,6.85449365,231.92,231.85,2.98]
[1732129982052,2.1544,231.87,231.85,2.98]
[1732129982547,6.85449365,231.93,231.85,2.98]
[1732129983051,7.52523573,231.98,231.88,6.85449365]
[1732129983252,6.85449365,231.96,231.88,6.85449365]
[1732129983645,6.85449365,231.94,231.88,6.85449365]
[1732129984252,2.1541,231.9,231.88,6.85449365]
[1732129984451,2.1541,231.9,231.86,6.85449365]
[1732129984653,6.85449365,231.94,231.86,6.85449365]
[1732129985543,6.85449365,231.96,231.9,6.85449365]
[1732129985747,6.85449365,231.97,231.9,6.85449365]
[1732129985943,1.7737,232.01,231.9,6.85449365]
[1732129986151,6.85449365,231.99,231.92,6.85449365]
[1732129986346,51.72290769,232.02,231.92,6.85449365]